[Event "Titled Tuesday Blitz May 16 Early 2023"]
[White "Nihal Sarin"]
[Black "Ivic, Velimir"]
[WhiteFideId "25092340"]
[BlackFideId "950122"]
[WhiteElo "2689"]
[BlackElo "2563"]
[Result "0-1"]
[Round "11"]
[TimeControl "180+2"]
[Date "2023.05.16"]
[WhiteClock "0:00:00"]
[BlackClock "0:00:08"]

1. h4 {[%clk 0:03:00]}  e5 {[%clk 0:02:59]} 2. h5 {[%clk 0:03:00]}  d5 {[%clk 0:03:00]} 3. h6 {[%clk 0:03:00]}  Nxh6 {[%clk 0:02:59]} 4. d4 {[%clk 0:03:00]}  exd4 {[%clk 0:02:52]} 5. Bxh6 {[%clk 0:03:00]}  gxh6 {[%clk 0:02:53]} 6. Qxd4 {[%clk 0:03:00]}  Rg8 {[%clk 0:02:54]} 7. Nf3 {[%clk 0:03:00]}  c5 {[%clk 0:02:51]} 8. Qd3 {[%clk 0:02:55]}  Nc6 {[%clk 0:02:35]} 9. c3 {[%clk 0:02:43]}  Be6 {[%clk 0:02:21]} 10. Nbd2 {[%clk 0:02:34]}  Qb6 {[%clk 0:02:18]} 11. e3 {[%clk 0:02:27]}  Qxb2 {[%clk 0:02:05]} 12. Rb1 {[%clk 0:02:25]}  Qxa2 {[%clk 0:02:05]} 13. Rxb7 {[%clk 0:02:25]}  c4 {[%clk 0:01:57]} 14. Qxh7 {[%clk 0:02:24]}  Rg6 {[%clk 0:01:47]} 15. Nh4 {[%clk 0:01:58]}  Rf6 {[%clk 0:01:42]} 16. Be2 {[%clk 0:01:26]}  Qa1+ {[%clk 0:01:21]} 17. Qb1 {[%clk 0:01:23]}  Qxc3 {[%clk 0:01:19]} 18. Nf3 {[%clk 0:01:20]}  Bf5 {[%clk 0:00:53]} 19. Qb5 {[%clk 0:01:07]}  Qc1+ {[%clk 0:00:24]} 20. Bd1 {[%clk 0:01:07]}  Bd3 {[%clk 0:00:25]} 21. Rh5 {[%clk 0:00:45]}  Bb4 {[%clk 0:00:25]} 22. Rxd5 {[%clk 0:00:09]}  Bc2 {[%clk 0:00:25]} 23. Kf1 {[%clk 0:00:03]}  Qxd1+ {[%clk 0:00:21]} 24. Ne1 {[%clk 0:00:03]}  Bxd2 {[%clk 0:00:19]} 25. Kg1 {[%clk 0:00:02]}  Qxe1+ {[%clk 0:00:18]} 26. Kh2 {[%clk 0:00:02]}  Qxf2 {[%clk 0:00:15]} 27. Rh5 {[%clk 0:00:02]}  Bxe3 {[%clk 0:00:08]} 28. Qd5 {[%clk 0:00:00]}  Bf4+ {[%clk 0:00:08]} 0-1


[Site "https://www.chess.com"]

[Event "Titled Tuesday Blitz May 16 Early 2023"]
[White "Sychev, Klementy"]
[Black "Sarana, Alexey"]
[WhiteFideId "4114060"]
[BlackFideId "24133795"]
[WhiteElo "2583"]
[BlackElo "2714"]
[Result "0-1"]
[Round "11"]
[TimeControl "180+2"]
[Date "2023.05.16"]
[WhiteClock "0:00:00"]
[BlackClock "0:00:09"]

1. e4 {[%clk 0:03:00]}  e5 {[%clk 0:02:57]} 2. f4 {[%clk 0:02:58]}  d5 {[%clk 0:02:52]} 3. exd5 {[%clk 0:02:57]}  e4 {[%clk 0:02:53]} 4. d3 {[%clk 0:02:56]}  Qxd5 {[%clk 0:02:33]} 5. Nc3 {[%clk 0:02:48]}  Bb4 {[%clk 0:02:33]} 6. Bd2 {[%clk 0:02:49]}  Bxc3 {[%clk 0:02:26]} 7. Bxc3 {[%clk 0:02:49]}  Nf6 {[%clk 0:02:27]} 8. dxe4 {[%clk 0:02:39]}  Qxe4+ {[%clk 0:02:25]} 9. Qe2 {[%clk 0:02:39]}  Qxe2+ {[%clk 0:02:22]} 10. Nxe2 {[%clk 0:02:30]}  O-O {[%clk 0:02:22]} 11. Bxf6 {[%clk 0:02:27]}  gxf6 {[%clk 0:02:23]} 12. O-O-O {[%clk 0:02:28]}  Re8 {[%clk 0:02:13]} 13. Nc3 {[%clk 0:02:27]}  c6 {[%clk 0:02:06]} 14. Ne4 {[%clk 0:02:23]}  Kg7 {[%clk 0:01:07]} 15. Nd6 {[%clk 0:02:20]}  Rf8 {[%clk 0:01:07]} 16. Bc4 {[%clk 0:02:07]}  b5 {[%clk 0:01:01]} 17. Bb3 {[%clk 0:01:52]}  a5 {[%clk 0:00:43]} 18. Rhe1 {[%clk 0:01:44]}  a4 {[%clk 0:00:33]} 19. Bxf7 {[%clk 0:01:43]}  Rxf7 {[%clk 0:00:30]} 20. Nxc8 {[%clk 0:01:29]}  Na6 {[%clk 0:00:30]} 21. Nd6 {[%clk 0:01:24]}  Rfa7 {[%clk 0:00:31]} 22. Nf5+ {[%clk 0:00:57]}  Kg6 {[%clk 0:00:30]} 23. Ne7+ {[%clk 0:00:54]}  Kf7 {[%clk 0:00:28]} 24. Nxc6 {[%clk 0:00:54]}  Rc7 {[%clk 0:00:27]} 25. Nd4 {[%clk 0:00:52]}  b4 {[%clk 0:00:19]} 26. Nb5 {[%clk 0:00:50]}  Rc5 {[%clk 0:00:17]} 27. Nd6+ {[%clk 0:00:35]}  Kg6 {[%clk 0:00:17]} 28. Rd3 {[%clk 0:00:32]}  b3 {[%clk 0:00:16]} 29. Rg3+ {[%clk 0:00:25]}  Kh6 {[%clk 0:00:16]} 30. axb3 {[%clk 0:00:17]}  Nb4 {[%clk 0:00:11]} 31. c3 {[%clk 0:00:15]}  axb3 {[%clk 0:00:11]} 32. Nf7+ {[%clk 0:00:03]}  Kh5 {[%clk 0:00:11]} 33. Rh3+ {[%clk 0:00:03]}  Kg6 {[%clk 0:00:12]} 34. Nd6 {[%clk 0:00:02]}  Ra1+ {[%clk 0:00:07]} 35. Kd2 {[%clk 0:00:02]}  Rd5+ {[%clk 0:00:08]} 36. Ke2 {[%clk 0:00:03]}  Rxe1+ {[%clk 0:00:07]} 37. Kxe1 {[%clk 0:00:03]}  Nc2+ {[%clk 0:00:08]} 38. Ke2 {[%clk 0:00:03]}  Rxd6 {[%clk 0:00:09]} 39. Rg3+ {[%clk 0:00:03]}  Kf5 {[%clk 0:00:09]} 40. Rf3 {[%clk 0:00:00]}  Ke4 {[%clk 0:00:09]} 0-1


[Site "https://www.chess.com"]

[Event "Titled Tuesday Blitz May 16 Early 2023"]
[White "Hossain, Enamul"]
[Black "Quesada Perez, Yuniesky"]
[WhiteFideId "10200649"]
[BlackFideId "3504409"]
[WhiteElo "2433"]
[BlackElo "2585"]
[Result "0-1"]
[Round "11"]
[TimeControl "180+2"]
[Date "2023.05.16"]
[WhiteClock "0:00:05"]
[BlackClock "0:00:40"]

1. e4 {[%clk 0:03:00]}  d5 {[%clk 0:02:59]} 2. exd5 {[%clk 0:02:53]}  Qxd5 {[%clk 0:03:00]} 3. Nc3 {[%clk 0:02:54]}  Qa5 {[%clk 0:03:00]} 4. d4 {[%clk 0:02:54]}  Nf6 {[%clk 0:03:00]} 5. Nf3 {[%clk 0:02:54]}  Bf5 {[%clk 0:03:00]} 6. Bc4 {[%clk 0:02:49]}  e6 {[%clk 0:03:00]} 7. Bd2 {[%clk 0:02:49]}  Bb4 {[%clk 0:03:00]} 8. a3 {[%clk 0:02:49]}  Bxc3 {[%clk 0:02:59]} 9. Bxc3 {[%clk 0:02:49]}  Qb6 {[%clk 0:03:00]} 10. d5 {[%clk 0:02:49]}  exd5 {[%clk 0:03:00]} 11. Bxd5 {[%clk 0:02:49]}  Be6 {[%clk 0:03:00]} 12. Bxf6 {[%clk 0:02:43]}  gxf6 {[%clk 0:03:01]} 13. O-O {[%clk 0:02:42]}  Nd7 {[%clk 0:03:01]} 14. c4 {[%clk 0:01:56]}  O-O-O {[%clk 0:03:00]} 15. b4 {[%clk 0:01:53]}  Rhg8 {[%clk 0:02:19]} 16. c5 {[%clk 0:01:23]}  Qa6 {[%clk 0:02:18]} 17. Qb3 {[%clk 0:01:12]}  Nxc5 {[%clk 0:02:09]} 18. Bxe6+ {[%clk 0:01:11]}  Nxe6 {[%clk 0:02:10]} 19. Rfd1 {[%clk 0:01:07]}  Qc6 {[%clk 0:01:55]} 20. Rac1 {[%clk 0:00:56]}  Qe4 {[%clk 0:01:53]} 21. Re1 {[%clk 0:00:47]}  Rd3 {[%clk 0:01:23]} 22. Rxe4 {[%clk 0:00:37]}  Rxb3 {[%clk 0:01:23]} 23. Re3 {[%clk 0:00:36]}  Rxe3 {[%clk 0:01:17]} 24. fxe3 {[%clk 0:00:37]}  Rd8 {[%clk 0:01:17]} 25. Rc3 {[%clk 0:00:35]}  Ng5 {[%clk 0:01:12]} 26. Nd4 {[%clk 0:00:31]}  Ne6 {[%clk 0:01:05]} 27. Nf5 {[%clk 0:00:29]}  Rd2 {[%clk 0:01:00]} 28. h4 {[%clk 0:00:27]}  Kd7 {[%clk 0:00:56]} 29. Kh2 {[%clk 0:00:19]}  b6 {[%clk 0:00:56]} 30. Kg3 {[%clk 0:00:19]}  c5 {[%clk 0:00:55]} 31. bxc5 {[%clk 0:00:18]}  bxc5 {[%clk 0:00:47]} 32. Kf3 {[%clk 0:00:18]}  Kc6 {[%clk 0:00:46]} 33. Rb3 {[%clk 0:00:17]}  c4 {[%clk 0:00:43]} 34. Rb8 {[%clk 0:00:17]}  c3 {[%clk 0:00:41]} 35. Rc8+ {[%clk 0:00:17]}  Nc7 {[%clk 0:00:41]} 36. Nd4+ {[%clk 0:00:08]}  Rxd4 {[%clk 0:00:40]} 37. exd4 {[%clk 0:00:05]}  c2 {[%clk 0:00:40]} 0-1


[Site "https://www.chess.com"]

[Event "Titled Tuesday Blitz May 16 Early 2023"]
[White "Boyer, Mahel"]
[Black "Ibarra Jerez, Jose Carlos"]
[WhiteFideId "45102422"]
[BlackFideId "2226332"]
[WhiteElo "2439"]
[BlackElo "2638"]
[Result "0-1"]
[Round "11"]
[TimeControl "180+2"]
[Date "2023.05.16"]
[WhiteClock "0:00:00"]
[BlackClock "0:00:13"]

1. Nf3 {[%clk 0:03:00]}  d6 {[%clk 0:03:00]} 2. g3 {[%clk 0:02:57]}  e5 {[%clk 0:02:59]} 3. Bg2 {[%clk 0:02:58]}  f5 {[%clk 0:02:59]} 4. O-O {[%clk 0:02:58]}  Nf6 {[%clk 0:03:00]} 5. d4 {[%clk 0:02:57]}  e4 {[%clk 0:03:00]} 6. Ne1 {[%clk 0:02:58]}  d5 {[%clk 0:03:00]} 7. b3 {[%clk 0:02:55]}  Bd6 {[%clk 0:02:57]} 8. c4 {[%clk 0:02:50]}  c6 {[%clk 0:02:56]} 9. Ba3 {[%clk 0:02:50]}  f4 {[%clk 0:02:49]} 10. Qc1 {[%clk 0:02:45]}  fxg3 {[%clk 0:02:48]} 11. fxg3 {[%clk 0:02:42]}  O-O {[%clk 0:02:47]} 12. Bxd6 {[%clk 0:02:23]}  Qxd6 {[%clk 0:02:46]} 13. Nc2 {[%clk 0:02:24]}  Bg4 {[%clk 0:02:45]} 14. Nc3 {[%clk 0:02:23]}  Nbd7 {[%clk 0:02:44]} 15. Qf4 {[%clk 0:02:19]}  Qe7 {[%clk 0:02:41]} 16. cxd5 {[%clk 0:02:17]}  cxd5 {[%clk 0:02:19]} 17. Nxd5 {[%clk 0:02:12]}  Nxd5 {[%clk 0:02:20]} 18. Qxg4 {[%clk 0:02:12]}  N7f6 {[%clk 0:02:20]} 19. Qg5 {[%clk 0:02:11]}  Qd7 {[%clk 0:01:53]} 20. Na3 {[%clk 0:01:46]}  Nc3 {[%clk 0:01:48]} 21. Rae1 {[%clk 0:01:29]}  Qxd4+ {[%clk 0:01:44]} 22. e3 {[%clk 0:01:30]}  Qd2 {[%clk 0:01:37]} 23. Nc4 {[%clk 0:01:18]}  Qxa2 {[%clk 0:01:37]} 24. Nd6 {[%clk 0:01:19]}  Qxb3 {[%clk 0:01:33]} 25. Nf5 {[%clk 0:01:18]}  g6 {[%clk 0:01:19]} 26. Ne7+ {[%clk 0:00:52]}  Kg7 {[%clk 0:01:19]} 27. Rf2 {[%clk 0:00:18]}  Qe6 {[%clk 0:00:42]} 28. Nf5+ {[%clk 0:00:15]}  Kh8 {[%clk 0:00:43]} 29. Nd4 {[%clk 0:00:13]}  Qd5 {[%clk 0:00:43]} 30. Qh6 {[%clk 0:00:10]}  Qh5 {[%clk 0:00:28]} 31. Qf4 {[%clk 0:00:09]}  Ncd5 {[%clk 0:00:18]} 32. Qd6 {[%clk 0:00:08]}  Rae8 {[%clk 0:00:17]} 33. Ref1 {[%clk 0:00:08]}  Qe5 {[%clk 0:00:16]} 34. Rxf6 {[%clk 0:00:00]}  Nxf6 {[%clk 0:00:13]} 0-1


[Site "https://www.chess.com"]

[Event "Titled Tuesday Blitz May 16 Early 2023"]
[White "Ter-Sahakyan, Samvel"]
[Black "Santos Ruiz, Miguel"]
[WhiteFideId "13302531"]
[BlackFideId "22291482"]
[WhiteElo "2545"]
[BlackElo "2499"]
[Result "1-0"]
[Round "11"]
[TimeControl "180+2"]
[Date "2023.05.16"]
[WhiteClock "0:01:07"]
[BlackClock "0:00:39"]

1. d4 {[%clk 0:03:00]}  d5 {[%clk 0:02:58]} 2. c4 {[%clk 0:02:59]}  e6 {[%clk 0:02:58]} 3. Nf3 {[%clk 0:02:59]}  Nf6 {[%clk 0:02:57]} 4. g3 {[%clk 0:02:59]}  Bb4+ {[%clk 0:02:57]} 5. Bd2 {[%clk 0:02:59]}  Be7 {[%clk 0:02:57]} 6. Bg2 {[%clk 0:02:59]}  a5 {[%clk 0:02:56]} 7. Qc2 {[%clk 0:02:58]}  c6 {[%clk 0:02:55]} 8. Bf4 {[%clk 0:02:58]}  a4 {[%clk 0:02:53]} 9. a3 {[%clk 0:02:55]}  Nbd7 {[%clk 0:02:53]} 10. Nbd2 {[%clk 0:02:53]}  Nh5 {[%clk 0:02:51]} 11. h4 {[%clk 0:02:43]}  O-O {[%clk 0:02:46]} 12. Ng5 {[%clk 0:02:39]}  g6 {[%clk 0:02:44]} 13. e3 {[%clk 0:02:35]}  b5 {[%clk 0:02:29]} 14. c5 {[%clk 0:02:29]}  Ndf6 {[%clk 0:01:45]} 15. Bf3 {[%clk 0:02:00]}  Re8 {[%clk 0:01:35]} 16. Be5 {[%clk 0:01:57]}  Ng7 {[%clk 0:01:27]} 17. h5 {[%clk 0:01:50]}  Nfxh5 {[%clk 0:01:26]} 18. Nxf7 {[%clk 0:01:47]}  Kxf7 {[%clk 0:01:23]} 19. Bxh5 {[%clk 0:01:47]}  gxh5 {[%clk 0:01:20]} 20. Qxh7 {[%clk 0:01:40]}  Bf6 {[%clk 0:01:19]} 21. Nf3 {[%clk 0:01:30]}  Rh8 {[%clk 0:01:17]} 22. Qc2 {[%clk 0:01:25]}  Nf5 {[%clk 0:01:05]} 23. Bxf6 {[%clk 0:01:19]}  Qxf6 {[%clk 0:01:04]} 24. Ne5+ {[%clk 0:01:20]}  Kg7 {[%clk 0:01:03]} 25. O-O-O {[%clk 0:01:11]}  Kf8 {[%clk 0:00:43]} 26. g4 {[%clk 0:01:08]}  hxg4 {[%clk 0:00:42]} 27. Rxh8+ {[%clk 0:01:07]}  Qxh8 {[%clk 0:00:39]} 28. Ng6+ {[%clk 0:01:07]} 1-0


[Site "https://www.chess.com"]

[Event "Titled Tuesday Blitz May 16 Early 2023"]
[White "Drozdowski, Kacper"]
[Black "Simonian, Hrair"]
[WhiteFideId "1136720"]
[BlackFideId "13302337"]
[WhiteElo "2497"]
[BlackElo "2447"]
[Result "1/2-1/2"]
[Round "11"]
[TimeControl "180+2"]
[Date "2023.05.16"]
[WhiteClock "0:00:09"]
[BlackClock "0:00:06"]

1. e4 {[%clk 0:03:00]}  c5 {[%clk 0:03:00]} 2. Nf3 {[%clk 0:03:01]}  e6 {[%clk 0:03:01]} 3. d4 {[%clk 0:03:01]}  cxd4 {[%clk 0:03:01]} 4. Nxd4 {[%clk 0:03:02]}  a6 {[%clk 0:03:02]} 5. Bd3 {[%clk 0:03:02]}  Bc5 {[%clk 0:03:02]} 6. Nb3 {[%clk 0:03:02]}  Be7 {[%clk 0:03:03]} 7. Qg4 {[%clk 0:03:02]}  g6 {[%clk 0:03:04]} 8. Qe2 {[%clk 0:03:02]}  d6 {[%clk 0:03:03]} 9. c4 {[%clk 0:03:02]}  b6 {[%clk 0:03:03]} 10. Nc3 {[%clk 0:03:02]}  Bb7 {[%clk 0:03:04]} 11. O-O {[%clk 0:03:03]}  h5 {[%clk 0:03:04]} 12. Be3 {[%clk 0:03:02]}  Nd7 {[%clk 0:03:04]} 13. Rad1 {[%clk 0:03:02]}  Ngf6 {[%clk 0:03:04]} 14. h3 {[%clk 0:03:02]}  Qc7 {[%clk 0:03:04]} 15. f4 {[%clk 0:02:53]}  h4 {[%clk 0:03:02]} 16. Qd2 {[%clk 0:02:47]}  Nc5 {[%clk 0:02:52]} 17. Nxc5 {[%clk 0:02:45]}  dxc5 {[%clk 0:02:53]} 18. e5 {[%clk 0:02:45]}  Nh5 {[%clk 0:02:53]} 19. Be4 {[%clk 0:02:41]}  Ng3 {[%clk 0:02:49]} 20. Bxb7 {[%clk 0:02:26]}  Nxf1 {[%clk 0:02:47]} 21. Rxf1 {[%clk 0:02:07]}  Qxb7 {[%clk 0:02:46]} 22. Qe2 {[%clk 0:02:01]}  O-O-O {[%clk 0:02:45]} 23. a4 {[%clk 0:01:59]}  a5 {[%clk 0:02:43]} 24. Bf2 {[%clk 0:01:56]}  Rd7 {[%clk 0:02:42]} 25. Ne4 {[%clk 0:01:54]}  Rhd8 {[%clk 0:02:41]} 26. Rc1 {[%clk 0:01:54]}  Qc6 {[%clk 0:02:41]} 27. b3 {[%clk 0:01:50]}  Kb7 {[%clk 0:02:41]} 28. Kh2 {[%clk 0:01:49]}  Ka7 {[%clk 0:02:38]} 29. Rc3 {[%clk 0:01:42]}  Qb7 {[%clk 0:02:06]} 30. Rf3 {[%clk 0:01:35]}  Qa8 {[%clk 0:01:57]} 31. Rc3 {[%clk 0:01:31]}  Rd1 {[%clk 0:01:48]} 32. Rf3 {[%clk 0:01:25]}  Ra1 {[%clk 0:01:38]} 33. Nc3 {[%clk 0:01:23]}  Qc6 {[%clk 0:01:35]} 34. Qc2 {[%clk 0:01:01]}  f5 {[%clk 0:01:20]} 35. exf6 {[%clk 0:00:57]}  Bxf6 {[%clk 0:01:20]} 36. Qxg6 {[%clk 0:00:44]}  Bxc3 {[%clk 0:01:17]} 37. Rxc3 {[%clk 0:00:45]}  Rdd1 {[%clk 0:01:10]} 38. Bxh4 {[%clk 0:00:44]}  Rh1+ {[%clk 0:01:10]} 39. Kg3 {[%clk 0:00:44]}  Qxg2+ {[%clk 0:01:10]} 40. Kxg2 {[%clk 0:00:43]}  Rag1+ {[%clk 0:01:10]} 41. Kf2 {[%clk 0:00:39]}  Rxg6 {[%clk 0:01:11]} 42. Bg5 {[%clk 0:00:36]}  e5 {[%clk 0:01:01]} 43. h4 {[%clk 0:00:31]}  exf4 {[%clk 0:00:59]} 44. Rf3 {[%clk 0:00:29]}  Rh2+ {[%clk 0:00:57]} 45. Ke1 {[%clk 0:00:25]}  Re6+ {[%clk 0:00:56]} 46. Kd1 {[%clk 0:00:25]}  Re3 {[%clk 0:00:53]} 47. Rxe3 {[%clk 0:00:16]}  fxe3 {[%clk 0:00:54]} 48. Bxe3 {[%clk 0:00:16]}  Rh3 {[%clk 0:00:49]} 49. Kd2 {[%clk 0:00:16]}  Rxh4 {[%clk 0:00:44]} 50. Bg5 {[%clk 0:00:16]}  Rh3 {[%clk 0:00:42]} 51. Kc2 {[%clk 0:00:16]}  Kb7 {[%clk 0:00:43]} 52. Bf6 {[%clk 0:00:16]}  Kc6 {[%clk 0:00:43]} 53. Be5 {[%clk 0:00:16]}  Kd7 {[%clk 0:00:42]} 54. Bf6 {[%clk 0:00:16]}  Rh6 {[%clk 0:00:39]} 55. Bg7 {[%clk 0:00:16]}  Rg6 {[%clk 0:00:39]} 56. Be5 {[%clk 0:00:16]}  Ke6 {[%clk 0:00:39]} 57. Bh8 {[%clk 0:00:14]}  Kf5 {[%clk 0:00:40]} 58. Bc3 {[%clk 0:00:12]}  Ke4 {[%clk 0:00:41]} 59. Bh8 {[%clk 0:00:11]}  Ke3 {[%clk 0:00:38]} 60. Be5 {[%clk 0:00:11]}  Re6 {[%clk 0:00:30]} 61. Bg7 {[%clk 0:00:10]}  Ke2 {[%clk 0:00:30]} 62. Bh8 {[%clk 0:00:09]}  Ke1 {[%clk 0:00:27]} 63. Bg7 {[%clk 0:00:09]}  Re2+ {[%clk 0:00:24]} 64. Kc1 {[%clk 0:00:09]}  Rg2 {[%clk 0:00:20]} 65. Be5 {[%clk 0:00:10]}  Ke2 {[%clk 0:00:19]} 66. Kc2 {[%clk 0:00:09]}  Ke3+ {[%clk 0:00:19]} 67. Kc1 {[%clk 0:00:09]}  Kd3 {[%clk 0:00:18]} 68. Bf6 {[%clk 0:00:09]}  Rc2+ {[%clk 0:00:16]} 69. Kb1 {[%clk 0:00:09]}  Rf2 {[%clk 0:00:15]} 70. Be5 {[%clk 0:00:10]}  Rf1+ {[%clk 0:00:15]} 71. Kb2 {[%clk 0:00:10]}  Re1 {[%clk 0:00:16]} 72. Bf6 {[%clk 0:00:10]}  Re2+ {[%clk 0:00:16]} 73. Kb1 {[%clk 0:00:10]}  Re4 {[%clk 0:00:13]} 74. Kb2 {[%clk 0:00:10]}  Rf4 {[%clk 0:00:13]} 75. Bg7 {[%clk 0:00:10]}  Rf2+ {[%clk 0:00:13]} 76. Kb1 {[%clk 0:00:10]}  Rg2 {[%clk 0:00:13]} 77. Bf6 {[%clk 0:00:10]}  Rg6 {[%clk 0:00:11]} 78. Be5 {[%clk 0:00:10]}  Re6 {[%clk 0:00:08]} 79. Bg7 {[%clk 0:00:10]}  Re7 {[%clk 0:00:06]} 80. Bf6 {[%clk 0:00:11]}  Rd7 {[%clk 0:00:07]} 81. Kb2 {[%clk 0:00:11]}  Rf7 {[%clk 0:00:06]} 82. Be5 {[%clk 0:00:10]}  Rh7 {[%clk 0:00:06]} 83. Bf6 {[%clk 0:00:10]}  Rh2+ {[%clk 0:00:06]} 84. Kb1 {[%clk 0:00:11]}  Ke4 {[%clk 0:00:06]} 85. Bg7 {[%clk 0:00:11]}  Rg2 {[%clk 0:00:06]} 86. Bf6 {[%clk 0:00:11]}  Rg8 {[%clk 0:00:06]} 87. Kb2 {[%clk 0:00:11]}  Rf8 {[%clk 0:00:06]} 88. Bg7 {[%clk 0:00:11]}  Rf7 {[%clk 0:00:06]} 89. Bh8 {[%clk 0:00:11]}  Rb7 {[%clk 0:00:07]} 90. Kb1 {[%clk 0:00:11]}  Kd3 {[%clk 0:00:07]} 91. Kb2 {[%clk 0:00:11]}  Rb8 {[%clk 0:00:06]} 92. Be5 {[%clk 0:00:11]}  Rb7 {[%clk 0:00:06]} 93. Bf6 {[%clk 0:00:11]}  b5 {[%clk 0:00:05]} 94. axb5 {[%clk 0:00:11]}  a4 {[%clk 0:00:05]} 95. Be5 {[%clk 0:00:10]}  Re7 {[%clk 0:00:03]} 96. Bd6 {[%clk 0:00:09]}  Re2+ {[%clk 0:00:03]} 97. Ka3 {[%clk 0:00:09]}  axb3 {[%clk 0:00:04]} 98. Kxb3 {[%clk 0:00:09]}  Rc2 {[%clk 0:00:04]} 99. Bxc5 {[%clk 0:00:08]}  Rxc4 {[%clk 0:00:04]} 100. Bb4 {[%clk 0:00:09]}  Rc7 {[%clk 0:00:04]} 101. b6 {[%clk 0:00:09]}  Rb7 {[%clk 0:00:04]} 102. Bc5 {[%clk 0:00:09]}  Ke4 {[%clk 0:00:04]} 103. Kc4 {[%clk 0:00:10]}  Ke5 {[%clk 0:00:05]} 104. Be3 {[%clk 0:00:09]}  Rxb6 {[%clk 0:00:06]} 105. Bxb6 {[%clk 0:00:09]} 1/2-1/2


[Site "https://www.chess.com"]

[Event "Titled Tuesday Blitz May 16 Early 2023"]
[White "Skliarov, Viktor"]
[Black "Durarbayli, Vasif"]
[WhiteFideId "14106736"]
[BlackFideId "13402935"]
[WhiteElo "2317"]
[BlackElo "2551"]
[Result "0-1"]
[Round "11"]
[TimeControl "180+2"]
[Date "2023.05.16"]
[WhiteClock "0:00:00"]
[BlackClock "0:00:22"]

1. e4 {[%clk 0:03:00]}  c5 {[%clk 0:02:59]} 2. Nf3 {[%clk 0:03:01]}  d6 {[%clk 0:03:00]} 3. d4 {[%clk 0:03:01]}  cxd4 {[%clk 0:03:01]} 4. Qxd4 {[%clk 0:03:01]}  Nf6 {[%clk 0:03:01]} 5. Nc3 {[%clk 0:03:01]}  Nc6 {[%clk 0:03:00]} 6. Bb5 {[%clk 0:03:01]}  e5 {[%clk 0:02:53]} 7. Qc4 {[%clk 0:02:54]}  Be7 {[%clk 0:02:41]} 8. Bxc6+ {[%clk 0:02:52]}  bxc6 {[%clk 0:02:39]} 9. Qxc6+ {[%clk 0:02:53]}  Bd7 {[%clk 0:02:40]} 10. Qc4 {[%clk 0:02:49]}  O-O {[%clk 0:02:39]} 11. O-O {[%clk 0:02:48]}  Qb6 {[%clk 0:02:37]} 12. a4 {[%clk 0:02:37]}  Rfc8 {[%clk 0:02:36]} 13. Qd3 {[%clk 0:02:34]}  Qb4 {[%clk 0:02:29]} 14. Bd2 {[%clk 0:02:23]}  Qc4 {[%clk 0:02:17]} 15. b3 {[%clk 0:02:02]}  Qc6 {[%clk 0:01:27]} 16. Rfe1 {[%clk 0:01:54]}  h6 {[%clk 0:01:25]} 17. Rac1 {[%clk 0:01:52]}  Be6 {[%clk 0:01:25]} 18. Na2 {[%clk 0:01:22]}  a5 {[%clk 0:01:12]} 19. c4 {[%clk 0:01:20]}  Qb7 {[%clk 0:01:10]} 20. Rb1 {[%clk 0:01:18]}  Nd7 {[%clk 0:01:09]} 21. Nc3 {[%clk 0:01:03]}  Nc5 {[%clk 0:01:09]} 22. Qc2 {[%clk 0:01:03]}  Rf8 {[%clk 0:01:07]} 23. Be3 {[%clk 0:00:59]}  Na6 {[%clk 0:01:04]} 24. Rbd1 {[%clk 0:00:46]}  f5 {[%clk 0:00:58]} 25. Nb5 {[%clk 0:00:20]}  Nb4 {[%clk 0:00:54]} 26. Qb1 {[%clk 0:00:18]}  fxe4 {[%clk 0:00:54]} 27. Nd2 {[%clk 0:00:18]}  Nd3 {[%clk 0:00:54]} 28. Rf1 {[%clk 0:00:18]}  d5 {[%clk 0:00:51]} 29. cxd5 {[%clk 0:00:16]}  Bxd5 {[%clk 0:00:51]} 30. Nc4 {[%clk 0:00:15]}  Bxc4 {[%clk 0:00:34]} 31. bxc4 {[%clk 0:00:14]}  Qc6 {[%clk 0:00:35]} 32. f3 {[%clk 0:00:11]}  Bc5 {[%clk 0:00:35]} 33. Rxd3 {[%clk 0:00:09]}  exd3 {[%clk 0:00:34]} 34. Qxd3 {[%clk 0:00:10]}  Rad8 {[%clk 0:00:34]} 35. Qe2 {[%clk 0:00:10]}  Bxe3+ {[%clk 0:00:32]} 36. Qxe3 {[%clk 0:00:10]}  Qxc4 {[%clk 0:00:33]} 37. Qxe5 {[%clk 0:00:09]}  Qxa4 {[%clk 0:00:33]} 38. Nd6 {[%clk 0:00:09]}  Qd7 {[%clk 0:00:32]} 39. Rd1 {[%clk 0:00:04]}  Rf6 {[%clk 0:00:24]} 40. Qxa5 {[%clk 0:00:02]}  Rxd6 {[%clk 0:00:22]} 41. Rxd6 {[%clk 0:00:03]}  Qxd6 {[%clk 0:00:23]} 42. Qa2+ {[%clk 0:00:04]}  Qd5 {[%clk 0:00:23]} 43. Qxd5+ {[%clk 0:00:00]}  Rxd5 {[%clk 0:00:22]} 0-1


[Site "https://www.chess.com"]